fUSD/lending_fUSD_20240101
["ID","MTS","AMOUNT","RATE_DAILY","PERIOD"]
[309765451,1704105033684,-500.0,0.00037389,2]
[309765452,1704105033693,-315.93600803,0.00037389,2]
[309765453,1704105033702,-500.0,0.00037389,2]
[309765454,1704105033712,-500.0,0.00037389,2]
[309765455,1704105033722,-500.0,0.00037389,2]
[309765456,1704105033731,-574.27145535,0.00037389,2]
[309765457,1704105033740,-500.0,0.00037389,2]
[309765458,1704105033749,-500.0,0.00037389,2]
[309765459,1704105033758,-378.65,0.00037389,2]
[309765460,1704105033772,-500.0,0.00037389,2]
[309765461,1704105033781,-500.0,0.00037389,2]
[309765462,1704105033790,-500.0,0.00037389,2]
[309765463,1704105033802,-500.0,0.00037389,2]
[309765464,1704105033810,-150.0,0.00037389,2]
[309765465,1704105033819,-500.0,0.00037389,2]
[309765466,1704105033829,-361.55,0.00037389,2]
[309765467,1704105033838,-500.0,0.00037389,2]
[309765468,1704105033847,-366.3133818,0.00037389,2]
[309765469,1704105033856,-500.0,0.00037389,2]
[309765470,1704105033866,-500.0,0.00037389,2]
[309765471,1704105033875,-543.58590306,0.00037389,2]
[309765472,1704105033885,-478.85,0.00037389,2]
[309765473,1704105033895,-500.0,0.00037389,2]
[309765474,1704105033904,-574.111704,0.00037389,2]
[309765475,1704105033914,-500.0,0.00037389,2]
[309765476,1704105033923,-500.0,0.00037389,2]
[309765477,1704105033932,-500.0,0.00037389,2]
[309765478,1704105033942,-500.0,0.00037389,2]
[309765479,1704105033951,-294.10303111,0.00037389,2]
[309765480,1704105033972,-205.89696889,0.00037389,2]
[309765481,1704105033981,-500.0,0.00037389,2]
[309765482,1704105033991,-500.0,0.00037389,2]
[309765483,1704105034001,-560.41152588,0.00037389,2]
[309765484,1704105034011,-500.0,0.00037389,2]
[309765485,1704105034021,-500.0,0.00037389,2]
[309765486,1704105034030,-160.55,0.00037389,2]
[309765487,1704105034039,-500.0,0.00037389,2]
[309765488,1704105034048,-500.0,0.00037389,2]
[309765489,1704105034059,-500.0,0.00037389,2]
[309765490,1704105034068,-500.0,0.00037389,2]
[309765491,1704105034078,-500.0,0.00037389,2]
[309765492,1704105034087,-500.0,0.00037389,2]
[309765493,1704105034097,-500.0,0.00037389,2]
[309765494,1704105034107,-500.0,0.00037389,2]
[309765495,1704105034116,-500.0,0.00037389,2]
[309765496,1704105034125,-500.0,0.00037389,2]
[309765497,1704105034134,-500.0,0.00037389,2]
[309765498,1704105034143,-636.84,0.00037389,2]
[309765499,1704105034153,-500.0,0.00037389,2]
[309765500,1704105034162,-186.9035364,0.00037389,2]
[309765501,1704105034172,-500.0,0.00037389,2]
[309765502,1704105034181,-3540.36,0.00037389,5]
[309765503,1704105034190,-500.0,0.00037389,2]
[309765504,1704105034199,-500.0,0.00037389,2]
[309765505,1704105034208,-500.0,0.00037389,2]
[309765506,1704105034218,-554.06,0.00037389,2]
[309765507,1704105034227,-228.25,0.00037389,2]
[309765508,1704105034236,-500.0,0.00037389,2]
[309765509,1704105034246,-500.0,0.00037389,2]
[309765510,1704105034255,-500.0,0.00037389,2]
[309765511,1704105034265,-500.0,0.00037389,2]
[309765512,1704105034274,-500.0,0.00037389,2]
[309765513,1704105034284,-500.0,0.00037389,2]
[309765514,1704105034294,-556.37,0.00037389,2]
[309765515,1704105034304,-500.0,0.00037389,2]
[309765516,1704105034313,-5370.34,0.00037389,5]
[309765517,1704105034324,-500.0,0.00037389,2]
[309765518,1704105034333,-500.0,0.00037389,2]
[309765519,1704105034352,-500.0,0.00037389,2]
[309765520,1704105034364,-500.0,0.00037389,2]
[309765521,1704105034374,-350.0,0.00037389,2]
[309765522,1704105034384,-616.21,0.00037389,2]
[309765523,1704105034394,-956.18,0.00037389,2]
[309765524,1704105034404,-500.0,0.00037389,2]
[309765525,1704105034414,-500.0,0.00037389,2]
[309765526,1704105034424,-500.0,0.00037389,2]
[309765527,1704105034434,-3177.95,0.00037389,2]
[309765528,1704105034444,-500.0,0.00037389,2]
[309765529,1704105034453,-500.0,0.00037389,2]
[309765530,1704105034463,-500.0,0.00037389,2]
[309765531,1704105034474,-500.0,0.00037389,2]
[309765532,1704105034483,-500.0,0.00037389,2]
[309765533,1704105034493,-673.04,0.00037389,2]
[309765534,1704105034503,-500.0,0.00037389,2]
[309765535,1704105034513,-500.0,0.00037389,2]
[309765536,1704105034522,-500.0,0.00037389,2]
[309765537,1704105034531,-34358.64988162,0.0003739,10]
[309765539,1704105038103,-500.0,0.00037389,2]
[309765540,1704105038113,-11092.58820508,0.0003739,10]
[309765541,1704105038122,-152.64,0.0003739,2]
[309765542,1704105038131,-333.33333,0.00037398,4]
[309765543,1704105038141,-516.82496796,0.00037399,2]
[309765544,1704105038151,-500.0,0.00037399,2]
[309765545,1704105038161,-500.0,0.00037399,2]
[309765546,1704105038170,-500.0,0.00037399,2]
[309765547,1704105038179,-500.0,0.00037399,2]
[309765548,1704105038188,-359.40508031,0.00037399,2]
[309765549,1704105038197,-500.0,0.00037399,2]
[309765550,1704105038208,-500.0,0.00037399,2]
[309765551,1704105038218,-344.35,0.00037399,2]
[309765552,1704105038227,-500.0,0.00037399,2]
[309765553,1704105038237,-500.0,0.00037399,2]
[309765554,1704105038246,-500.0,0.00037399,2]
[309765555,1704105038256,-500.0,0.00037399,2]
[309765556,1704105038266,-500.0,0.00037399,2]
[309765557,1704105038275,-500.0,0.00037399,2]
[309765558,1704105038285,-507.98172783,0.00037399,2]
[309765559,1704105038294,-500.0,0.00037399,2]
[309765560,1704105038303,-3870.22574824,0.000374,2]
[309765561,1704105038316,-1999.34335176,0.000374,2]
[309765562,1704105038326,-132996.5913,0.000374,2]
[309765563,1704105038335,-181.18102997,0.000374,10]
[309765564,1704105038345,-154.99375859,0.000374,2]
[309765565,1704105038355,-34141.72,0.000374,2]
[309765566,1704105038365,-5000.0,0.000374,2]
[309765567,1704105038375,-1074.72,0.000374,2]
[309765568,1704105038384,-400.4,0.00037401,2]
[309765569,1704105038394,-150.0,0.00037402,7]
[309765570,1704105038404,-156.46403952,0.00037429,2]
[309765571,1704105038413,-500.0,0.00037463,2]
[309765572,1704105038422,-200.0,0.00037463,2]
[309765573,1704105038431,-200.0,0.00037463,10]
[309765574,1704105038441,-346.27334601,0.00037479,4]
[309765575,1704105038449,-177.71960129,0.0003748,2]
[309765576,1704105038459,-152.64,0.0003748,2]
[309765577,1704105038468,-156.46403952,0.00037481,2]
[309765578,1704105038477,-7575.20634778,0.00037488,10]
[309765579,1704105038487,-53026.4444345,0.00037489,10]
[309765580,1704105038496,-128778.507912,0.0003749,10]
[309765581,1704105038505,-152.64,0.0003749,2]
[309765582,1704105038514,-154.47,0.0003749,2]
[309765583,1704105038523,-514.12209089,0.00037494,2]
[309765584,1704105038533,-155.0,0.00037497,4]
[309765585,1704105038542,-16446.05954321,0.00037498,2]
[309765586,1704105038551,-333.33333,0.00037498,4]
[309765587,1704105038560,-107057.04800975,0.00037499,2]
[309765588,1704105038569,-221427.88246279,0.000375,2]
[309765589,1704105039007,-731.70217556,0.000375,2]
[309765590,1704105039020,-3940.35184669,0.000375,2]
[309765656,1704105040493,-160.0195114,0.000374,12]
[309765658,1704105040502,-18943.51221449,0.000375,2]
[309765662,1704105041350,-1263.90903486,0.000375,2]
[309765672,1704105041777,-2393.99999883,0.000375,2]
[309765673,1704105041790,-1298.64226678,0.000375,2]
[309765674,1704105041802,-500.0,0.000375,5]
[309765675,1704105041812,-427.82441454,0.000375,2]
[309765689,1704105044596,-328.63278419,0.000365,2]
[309765690,1704105044606,-1572.17558546,0.000375,2]
[309765691,1704105044615,-300.0,0.00037519,5]
[309765692,1704105044624,-156.46403952,0.00037533,2]
[309765693,1704105044633,-166.41,0.00037552,2]
[309765695,1704105044642,-152.64,0.00037585,2]
[309765697,1704105044651,-156.46403952,0.00037586,2]
[309765699,1704105044659,-400.4,0.00037591,2]
[309765701,1704105044668,-1243.80022153,0.00037594,4]
[309765703,1704105044678,-55555.0,0.00037595,3]
[309765704,1704105044687,-152.14,0.00037595,2]
[309765705,1704105044697,-333.33333,0.00037598,4]
[309765706,1704105044706,-333.33333,0.00037598,4]
[309765707,1704105044715,-156.46403952,0.00037638,2]
[309765708,1704105044725,-5000.0,0.00037648,2]
[309765709,1704105044734,-2283.55963992,0.00037653,10]
[309765710,1704105044786,-20442.05940338,0.00037653,10]
[309765711,1704105044795,-7575.20634778,0.00037663,10]
[309765712,1704105044809,-377.5,0.00037663,2]
[309765713,1704105044818,-500.0,0.00037663,2]
[309765714,1704105044827,-500.0,0.00037663,2]
[309765715,1704105044839,-500.0,0.00037663,2]
[309765716,1704105044848,-500.0,0.00037663,2]
[309765717,1704105044858,-500.0,0.00037663,2]
[309765718,1704105044867,-500.0,0.00037663,2]
[309765719,1704105044876,-500.0,0.00037663,2]
[309765720,1704105044885,-500.0,0.00037663,2]
[309765721,1704105044895,-500.0,0.00037663,2]
[309765722,1704105044904,-500.0,0.00037663,2]
[309765723,1704105044912,-264.85925504,0.00037663,2]
[309765724,1704105044921,-500.0,0.00037663,2]
[309765725,1704105044930,-500.0,0.00037663,2]
[309765726,1704105044939,-500.0,0.00037663,2]
[309765727,1704105044948,-500.0,0.00037663,2]
[309765728,1704105044957,-485.3,0.00037663,2]
[309765729,1704105044966,-201.25,0.00037663,2]
[309765730,1704105044975,-500.0,0.00037663,2]
[309765732,1704105044984,-500.0,0.00037663,2]
[309765733,1704105044994,-500.0,0.00037663,2]
[309765734,1704105045003,-500.0,0.00037663,2]
[309765735,1704105045012,-500.0,0.00037663,2]
[309765736,1704105045022,-637.21323788,0.00037663,2]
[309765737,1704105045031,-500.0,0.00037663,2]
[309765738,1704105045040,-500.0,0.00037663,2]
[309765740,1704105045049,-500.0,0.00037663,2]
[309765741,1704105045058,-500.0,0.00037663,2]
[309765743,1704105045067,-500.0,0.00037663,2]
[309765744,1704105045077,-500.0,0.00037663,2]
[309765745,1704105045086,-617.2,0.00037663,2]
[309765746,1704105045096,-500.0,0.00037663,2]
[309765747,1704105045105,-500.0,0.00037663,2]
[309765748,1704105045115,-500.0,0.00037663,2]
[309765749,1704105045124,-500.0,0.00037663,2]
[309765750,1704105045133,-500.0,0.00037663,2]
[309765751,1704105045142,-500.0,0.00037663,2]
[309765752,1704105045152,-500.0,0.00037663,2]
[309765753,1704105045162,-189.15,0.00037663,2]
[309765754,1704105045171,-320.35879794,0.00037663,2]
[309765755,1704105045181,-500.0,0.00037663,2]
[309765756,1704105045190,-636.84,0.00037663,2]
[309765757,1704105045200,-326.7726547,0.00037663,2]
[309765758,1704105045209,-3540.36,0.00037663,5]
[309765759,1704105045218,-153.4,0.00037663,2]
[309765760,1704105045227,-500.0,0.00037663,2]
[309765761,1704105045237,-500.0,0.00037663,2]
[309765762,1704105045247,-554.06,0.00037663,2]
[309765763,1704105045256,-494.33267858,0.00037663,2]
[309765764,1704105045265,-500.0,0.00037663,2]
[309765765,1704105045275,-500.0,0.00037663,2]
[309765766,1704105045284,-500.0,0.00037663,2]
[309765767,1704105045294,-500.0,0.00037663,2]
[309765768,1704105045303,-500.0,0.00037663,2]
[309765769,1704105045312,-556.37,0.00037663,2]
[309765770,1704105045322,-500.0,0.00037663,2]
[309765771,1704105045331,-5370.34,0.00037663,5]
[309765772,1704105045340,-500.0,0.00037663,2]
[309765773,1704105045351,-500.0,0.00037663,2]
[309765774,1704105045360,-500.0,0.00037663,2]
[309765775,1704105045370,-500.0,0.00037663,2]
[309765776,1704105045379,-616.21,0.00037663,2]
[309765777,1704105045388,-956.18,0.00037663,2]
[309765778,1704105045397,-500.0,0.00037663,2]
[309765779,1704105045406,-500.0,0.00037663,2]
[309765780,1704105045415,-500.0,0.00037663,2]
[309765781,1704105045424,-3177.95,0.00037663,2]
[309765782,1704105045433,-500.0,0.00037663,2]
[309765783,1704105045442,-254.15,0.00037663,2]
[309765784,1704105045451,-500.0,0.00037663,2]
[309765785,1704105045460,-500.0,0.00037663,2]
[309765786,1704105045469,-673.04,0.00037663,2]
[309765787,1704105045478,-500.0,0.00037663,2]
[309765788,1704105045488,-500.0,0.00037663,2]
[309765789,1704105045496,-627.88179184,0.00037663,2]
[309765790,1704105045505,-500.0,0.00037663,2]
[309765791,1704105045515,-500.0,0.00037673,2]
[309765792,1704105045524,-500.0,0.00037673,2]
[309765793,1704105045534,-500.0,0.00037673,2]
[309765794,1704105045543,-500.0,0.00037673,2]
[309765795,1704105045553,-500.0,0.00037673,2]
[309765796,1704105045562,-500.0,0.00037673,2]
[309765797,1704105045571,-500.0,0.00037673,2]
[309765798,1704105045580,-200.0,0.00037695,2]
[309765799,1704105045590,-3441.86785319,0.00037695,4]
[309765800,1704105045599,-484.81888724,0.00037695,4]
[309765801,1704105045607,-155.0,0.00037695,4]
[309765802,1704105045617,-333.33333,0.00037698,4]
[309765803,1704105045626,-1318.33477583,0.000377,11]
[309765804,1704105045636,-154.47,0.00037729,2]
[309765805,1704105045645,-400.4,0.00037781,2]
[309765806,1704105045655,-333.33333,0.00037798,4]
[309765807,1704105045665,-195.37946046,0.000378,2]
[309765808,1704105045674,-1318.33477581,0.00037809,11]
[309765809,1704105045683,-167.73,0.00037862,2]
[309765810,1704105045692,-160.96440861,0.00037864,2]
[309765811,1704105045701,-152.64,0.0003789,2]
[309765812,1704105045711,-152.64,0.0003789,2]
[309765813,1704105045720,-152.64,0.0003789,2]
[309765814,1704105045730,-1218.0958416,0.00037894,2]
[309765815,1704105045739,-32784.9460672,0.00037894,2]
[309765816,1704105045749,-333.33333,0.00037898,4]
[309765817,1704105045758,-150.01,0.00037899,2]
[309765818,1704105045767,-3283.07032283,0.00037899,2]
[309765819,1704105045776,-348.9412094,0.00037899,30]
[309765820,1704105045785,-118383.109,0.000379,4]
[309765821,1704105045795,-776.390841,0.000379,2]
[309765822,1704105045807,-1293.9847346,0.000379,2]
[309765823,1704105045816,-383776.816135,0.000379,3]
[309765824,1704105045826,-954.20907542,0.000379,2]
[309765826,1704105045835,-4307.5762865,0.00037901,2]
[309765828,1704105045844,-10843.686581,0.00037905,2]
[309765830,1704105045853,-797.05288822,0.00037905,2]
[309765832,1704105045863,-258.26,0.00037906,2]
[309765833,1704105045873,-154.35,0.0003791,2]
[309765834,1704105045882,-152.64,0.00037917,2]
[309765835,1704105045891,-1318.33477581,0.00037917,11]
[309765836,1704105045899,-95944.2040337,0.00037927,3]
[309765837,1704105045908,-152.64,0.00037932,2]
[309765838,1704105045917,-500.0,0.00037937,2]
[309765839,1704105045926,-266.2,0.00037937,2]
[309765840,1704105045935,-411.55,0.00037937,2]
[309765841,1704105045944,-500.0,0.00037937,2]
[309765842,1704105045953,-500.0,0.00037937,2]
[309765843,1704105045963,-479.4,0.00037937,2]
[309765844,1704105045972,-500.0,0.00037937,2]
[309765845,1704105045981,-265.9,0.00037937,2]
[309765846,1704105045990,-500.0,0.00037937,2]
[309765847,1704105045999,-151.5374001,0.00037937,2]
[309765848,1704105046008,-478.67,0.00037937,2]
[309765849,1704105046018,-547.35,0.00037937,2]
[309765850,1704105046027,-500.0,0.00037937,2]
[309765851,1704105046036,-500.0,0.00037937,2]
[309765852,1704105046045,-150.25,0.00037937,2]
[309765853,1704105046054,-500.0,0.00037937,2]
[309765854,1704105046063,-500.0,0.00037937,2]
[309765855,1704105046072,-500.0,0.00037937,2]
[309765856,1704105046081,-287.1296259,0.00037937,2]
[309765857,1704105046091,-500.0,0.00037937,2]
[309765858,1704105046100,-500.0,0.00037937,2]
[309765859,1704105046109,-500.0,0.00037937,2]
[309765860,1704105046119,-500.0,0.00037937,2]
[309765861,1704105046128,-500.0,0.00037937,2]
[309765862,1704105046138,-500.0,0.00037937,2]
[309765863,1704105046147,-500.0,0.00037937,2]
[309765864,1704105046157,-500.0,0.00037937,2]
[309765865,1704105046166,-500.0,0.00037937,2]
[309765866,1704105046175,-500.0,0.00037937,2]
[309765867,1704105046185,-500.0,0.00037937,2]
[309765868,1704105046199,-500.0,0.00037937,2]
[309765869,1704105046208,-195.75,0.00037937,2]
[309765870,1704105046218,-636.84,0.00037937,2]
[309765871,1704105046227,-3540.36,0.00037937,5]
[309765872,1704105046236,-500.0,0.00037937,2]
[309765873,1704105046246,-500.0,0.00037937,2]
[309765874,1704105046255,-554.06,0.00037937,2]
[309765875,1704105046264,-500.0,0.00037937,2]
[309765877,1704105046273,-500.0,0.00037937,2]
[309765878,1704105046283,-500.0,0.00037937,2]
[309765880,1704105046292,-500.0,0.00037937,2]
[309765882,1704105046302,-500.0,0.00037937,2]
[309765884,1704105046311,-556.37,0.00037937,2]
[309765885,1704105046320,-500.0,0.00037937,2]
[309765887,1704105046330,-5370.34,0.00037937,5]
[309765889,1704105046339,-500.0,0.00037937,2]
[309765891,1704105046348,-500.0,0.00037937,2]
[309765893,1704105046358,-500.0,0.00037937,2]
[309765894,1704105046367,-500.0,0.00037937,2]
[309765895,1704105046380,-616.21,0.00037937,2]
[309765896,1704105046389,-956.18,0.00037937,2]
[309765897,1704105046398,-500.0,0.00037937,2]
[309765898,1704105046408,-500.0,0.00037937,2]
[309765900,1704105046417,-500.0,0.00037937,2]
[309765902,1704105046427,-3177.95,0.00037937,2]
[309765904,1704105046436,-500.0,0.00037937,2]
[309765906,1704105046445,-673.04,0.00037937,2]
[309765908,1704105046454,-165.44224565,0.00037937,2]
[309765909,1704105046463,-500.0,0.00037937,2]
[309765910,1704105046471,-500.0,0.00037937,2]
[309765911,1704105046480,-478301.47988913,0.00037942,3]
[309765912,1704105046644,-2434.93162961,0.00037942,3]
[309765913,1704105046655,-12281.56614587,0.00037942,3]
[309765914,1704105046667,-3525.12082601,0.00037942,3]
[309765915,1704105046677,-303.68822635,0.00037942,3]
[309765916,1704105046688,-2397.96649809,0.00037942,3]
[309765917,1704105046700,-3131.95230296,0.00037942,3]
[309765918,1704105046720,-330.43221171,0.00037942,3]
[309765919,1704105046735,-387.27347017,0.00037942,3]
[309765920,1704105046747,-834.8,0.00037942,3]
[309765921,1704105046762,-2046.3699554,0.00037942,3]
[309765922,1704105064603,206.0,0.00022677,2]
[309765923,1704105147226,155.0,0.00022677,2]
[309765924,1704105152378,259.07737049,0.00022677,2]
[309765925,1704105152405,10404.64650635,0.00022677,2]
[309765926,1704105153896,205.0,0.00022677,2]
[309765927,1704105154308,707.38851285,0.00020409,2]
[309765928,1704105156790,232.34232864,0.00022677,2]
[309765929,1704105164188,500.0,0.00022677,2]
[309765930,1704105168375,121848.80501212,0.00022677,2]
[309765931,1704105168402,10125.14826074,0.00022677,2]
[309765932,1704105169733,4833.74314731,0.00022677,2]
[309765933,1704105188384,80897.02495043,0.00022677,2]
[309765934,1704105198976,1140395.5226024,0.00022677,2]
[309765935,1704105213000,35520.93938753,0.00022677,2]
[309765937,1704105214960,12560.3760877,0.00022677,2]
[309765940,1704105603168,150.0,0.00022677,2]
[309765941,1704105603312,150.0,0.00022677,2]
[309765942,1704105603519,150.0,0.00022677,2]
[309765943,1704105603703,150.0,0.00022677,2]
[309765944,1704105603900,150.0,0.00022677,2]
[309765945,1704105604072,150.0,0.00022677,2]
[309765946,1704105604254,150.0,0.00022677,2]
[309765947,1704105604466,150.0,0.00022677,2]
[309765948,1704105604628,150.0,0.00022677,2]
[309765949,1704105604810,117.18918125,0.00022677,2]
[309765950,1704105604833,32.81081875,0.00022677,2]
[309765951,1704105604998,150.0,0.00022677,2]
[309765952,1704105605163,285.15647286,0.00022677,2]
[309765990,1704106232038,-379.89357337,0.00025,2]
[309765994,1704106232090,-151.48624871,0.00025,2]
[309765995,1704106232100,-450.0,0.00027,3]
[309765996,1704106232109,-500.0,0.00029,3]
[309765997,1704106232118,-321.43392431,0.00029499,2]
[309765998,1704106232144,-972.31277569,0.00029499,2]
[309765999,1704106232153,-251.11968805,0.000295,2]
[309766000,1704106232163,-160.85025321,0.000295,2]
[309766001,1704106232172,-251.11968805,0.00029599,2]
[309766002,1704106232182,-1966.0,0.000296,2]
[309766003,1704106232191,-251.11968805,0.000296,2]
[309766004,1704106232201,-100.30480954,0.0003,2]
[309766005,1704106232213,-54.69519046,0.0003,2]
[309766006,1704106232223,-550.0,0.00031,3]
[309766007,1704106232232,-160.85025318,0.000316,2]
[309766008,1704106232242,-361.90440753,0.000316,2]
[309766009,1704106232255,-1671.27559247,0.000316,2]
[309766010,1704106232265,-449.52440753,0.000316,2]
[309766011,1704106232277,-427.53,0.000316,2]
[309766027,1704106238147,-61.75559247,0.000316,2]
[309766028,1704106238157,-150.0,0.00032117,3]
[309766029,1704106238166,-522.09,0.00032117,20]
[309766030,1704106238175,-542.91,0.00032117,2]
[309766031,1704106238184,-84.23490745,0.00032118,2]
[309766032,1704106238196,-121.76509255,0.00032118,2]
[309766033,1704106238205,-3002.25316709,0.00032118,2]
[309766034,1704106238233,-259.56812837,0.00032118,2]
[309766035,1704106238255,-10949.17870454,0.00032118,2]
[309766036,1704106238264,-600.0,0.00033,3]
[309766037,1704106238273,-259.35,0.00033456,2]
[309766038,1704106238282,-160.85025318,0.000337,2]
[309766039,1704106238291,-1000.0,0.00034,4]
[309766040,1704106238300,-191.81495599,0.00034146,2]
[309766041,1704106238310,-299.57,0.00034343,2]
[309766042,1704106238320,-2000.0,0.00034982,2]
[309766043,1704106238329,-650.0,0.00035,3]
[309766044,1704106238339,-500.0,0.0003503,2]
[309766045,1704106238349,-2202.29,0.0003503,2]
[309766046,1704106238360,-161.52,0.00035037,2]
[309766047,1704106238370,-186.8,0.00035043,2]
[309766048,1704106238380,-2071.61,0.00035046,2]
[309766049,1704106238390,-250.0,0.00035075,2]
[309766050,1704106238399,-217.26,0.00035113,2]
[309766051,1704106238409,-664.34,0.00035113,2]
[309766052,1704106238420,-154.55,0.00035122,2]
[309766053,1704106238429,-8269.99313815,0.00035129,2]
[309766054,1704106238450,-3455.91068778,0.00035129,2]
[309766055,1704106238462,-6215.44584673,0.00035129,2]
[309766056,1704106238471,-2068.05843084,0.00035139,2]
[309766057,1704106238503,-19495.41156916,0.00035139,2]
[309766058,1704106238512,-710.32,0.00035166,2]
[309766059,1704106238522,-156.55,0.00035414,2]
[309766060,1704106238532,-158.6,0.00035475,2]
[309766065,1704106238721,-1000.0,0.00035521,2]
[309766068,1704106238735,-152.14,0.00035616,2]
[309766069,1704106238746,-156.55,0.00035644,2]
[309766070,1704106238756,-3557.89,0.00035705,2]
[309766071,1704106238766,-259.35,0.0003572,2]
[309766072,1704106238776,-160.85025318,0.000358,2]
[309766073,1704106238786,-156.55,0.00035875,2]
[309766074,1704106238795,-186.8,0.00036021,2]
[309766075,1704106238805,-333.33333,0.00036098,4]
[309766076,1704106238815,-156.55,0.00036106,2]
[309766077,1704106238825,-335.66,0.00036124,2]
[309766078,1704106238834,-433.81,0.00036147,2]
[309766079,1704106238843,-333.33333,0.00036198,2]
[309766080,1704106238852,-333.33333,0.00036298,4]
[309766081,1704106238862,-156.55,0.00036336,2]
[309766082,1704106238871,-433.81,0.00036337,2]
[309766083,1704106238881,-333.33333,0.00036398,2]
[309766084,1704106238890,-333.33333,0.00036498,4]
[309766085,1704106238899,-152.53,0.00036501,2]
[309766086,1704106238908,-433.81,0.00036527,2]
[309766087,1704106238917,-156.55,0.00036567,2]
[309766088,1704106238927,-150.0,0.00036583,2]
[309766089,1704106238937,-333.33333,0.00036598,2]
[309766090,1704106238946,-1806.76,0.00036697,2]
[309766091,1704106238955,-333.33333,0.00036698,4]
[309766092,1704106238964,-170.37564968,0.00036701,4]
[309766093,1704106238973,-433.81,0.00036717,2]
[309766094,1704106238982,-206.0,0.00036765,11]
[309766095,1704106238992,-156.55,0.00036798,2]
[309766096,1704106239002,-333.33333,0.00036798,2]
[309766097,1704106239011,-2581.1832,0.00036807,2]
[309766098,1704106239023,-155.19029512,0.00036896,4]
[309766099,1704106239033,-50000.0,0.00036897,15]
[309766100,1704106239042,-333.33333,0.00036898,4]
[309766101,1704106239051,-433.81,0.00036908,2]
[309766102,1704106239061,-350.62,0.0003697,2]
[309766103,1704106239070,-333.33333,0.00036998,2]
[309766104,1704106239080,-186.8,0.00036999,2]
[309766105,1704106239090,-306.25781983,0.00037,30]
[309766106,1704106239099,-700.0,0.00037,3]
[309766107,1704106239108,-1000.0,0.00037,7]
[309766108,1704106239118,-165.31,0.00037017,2]
[309766109,1704106239127,-157.65026115,0.00037017,2]
[309766110,1704106239136,-2162.44154837,0.00037025,2]
[309766111,1704106239145,-156.55,0.00037029,2]
[309766112,1704106239155,-2162.44154824,0.00037071,2]
[309766113,1704106239163,-433.81,0.00037098,2]
[309766114,1704106239173,-333.33333,0.00037098,4]
[309766115,1704106239182,-2162.44154824,0.00037117,2]
[309766116,1704106239191,-9351.8396,0.00037125,2]
[309766117,1704106239201,-3273.92,0.00037125,2]
[309766118,1704106239210,-2162.44154824,0.00037163,2]
[309766119,1704106239219,-165.74599897,0.00037189,8]
[309766120,1704106239228,-1217.977,0.00037195,2]
[309766121,1704106239238,-2368.637,0.00037195,2]
[309766122,1704106239248,-762.602,0.00037195,2]
[309766123,1704106239257,-840.0,0.00037195,2]
[309766124,1704106239267,-1845.0,0.00037195,2]
[309766125,1704106239276,-942.0,0.00037195,2]
[309766126,1704106239286,-189.462,0.00037195,2]
[309766127,1704106239296,-1256.0,0.00037195,2]
[309766128,1704106239308,-1138.0,0.00037195,2]
[309766129,1704106239318,-1952.734,0.00037195,2]
[309766130,1704106239327,-333.33333,0.00037198,4]
[309766131,1704106239338,-2162.44154824,0.00037209,2]